Cogmind - Beta 13 X1 @@@ ROGUE MODE // 2023.07.03 @ 19:11:12 Player: Plexion Result: Destroyed by D-53 Grenadier with Mini Grenade Launcher Performance ------------- Evolutions (0) 0 Regions Visited (2) 400 Robots Destroyed (22) 110 Value Destroyed (514) 514 Prototype IDs (0) 0 Alien Tech Used (0) 0 Bonus (0) 0 TOTAL SCORE: 1024 Bonus ------- None Cogmind --------- Core Integrity 0/250 Matter 213/300 Energy 100/100 System Corruption 2% Temperature Cool (0) Movement Treading (160) Location -10/Mines Parts ------- > --- POWER (1) -------- (None) > --- PROPULSION (2) --- Light Treads Light Treads > --- UTILITY (2) ------ Large Storage Unit > --- WEAPON (2) ------- Improved Light Cannon > --- INVENTORY (15) --- Ion Engine Light Treads Light Treads Light Treads Light Treads Tractor Beam Improved Light Cannon Peak State ------------ > --- POWER ------------ Light Ion Engine > --- PROPULSION ------- Light Treads Light Treads > --- UTILITY ---------- Small Storage Unit Medium Storage Unit > --- WEAPON ----------- Improved Light Cannon Improved Light Cannon > --- INVENTORY -------- Ion Engine Light Treads Light Treads Light Treads Light Treads Tractor Beam Improved Light Cannon Improved Light Cannon [Rating: 10] Favorites ----------- Power Light Ion Engine Engine Light Ion Engine Propulsion Light Treads Treads Light Treads Utility Heat Sink Device Heat Sink Storage Large Storage Unit Weapon Improved Light Cannon Energy Gun EM Pulse Gun Ballistic Cannon Improved Light Cannon Build | -11 -10 -10 ------- Run | Jun Mat Min Slots Evolved . | . . . Power . | . . . Propulsion . | . . . Utility . | . . . Weapon . | . . . Parts Attached 14 | 6 6 2 Power 1 | 1 . . Engine 1 | 1 . . Core . | . . . Reactor . | . . . Propulsion 4 | 2 1 1 Treads 4 | 2 1 1 Leg . | . . . Wheel . | . . . Hover . | . . . Flight . | . . . Utility 4 | 1 3 . Device 1 | . 1 . Storage 3 | 1 2 . Processor . | . . . Hackware . | . . . Protection . | . . . Artifact . | . . . Weapon 5 | 2 2 1 Energy Gun 2 | 2 . . Energy Cannon . | . . . Ballistic Gun . | . . . Ballistic Cannon 3 | . 2 1 Launcher . | . . . Special Weapon . | . . . Impact Weapon . | . . . Slashing Weapon . | . . . Piercing Weapon . | . . . Special Melee Weapon . | . . . Unidentified Prototypes . | . . . Parts Lost 5 | . . 5 Power 1 | . . 1 Propulsion 1 | . . 1 Utility 1 | . . 1 Weapon 2 | . . 2 Highest Loss Streak 5 | . . 5 To Critical Strikes . | . . . Average Slot Usage (%) 93 | . 91 99 Engine 14 | . 14 14 Treads 28 | . 28 28 Device 8 | . 6 13 Storage 14 | . 14 14 Energy Gun 2 | . 3 . Ballistic Cannon 25 | . 24 28 Naked Turns . | . . . Heaviest Build 32 | 12 32 32 Greatest Support 40 | 40 40 40 Greatest Overweight (x) . | . . . Average Overweight (x) . | . . . Largest Inventory Capacity 15 | 8 15 15 Average Capacity 11 | 6 11 15 Most Carried 10 | 2 10 9 Average Carried 7 | 1 7 8 Final Capacity 15 | 8 15 15 Final Carried 9 | 2 9 7 Class Distribution -------------------- 100% | Mutant Dominant Class ---------------- Mutant | -10/Materials Mutant | -10/Mines Resources | -11 -10 -10 ----------- Run | Jun Mat Min Matter Collected 650 | 241 337 72 Remotely . | . . . Salvage Created 634 | . 508 126 Parts 46 | . 43 3 Haulers Intercepted 1 | . 1 . Recyclers Shooed . | . . . Parts Field Recycled . | . . . Retrieved Matter . | . . . Parts Self-Destructed . | . . . Prevented . | . . . Kills | -11 -10 -10 ------- Run | Jun Mat Min Combat Hostiles Destroyed 16 | . 12 4 Guns 4 | . 4 . Cannons 12 | . 8 4 Classes Destroyed 7 | . 5 2 Builder 3 | . 3 . Hauler 1 | . 1 . Recycler 1 | . . 1 Watcher 3 | . 3 . Swarmer 3 | . 3 . Grunt 11 | . 9 2 Assembled 2 | . . 2 Best Kill Streak 3 | . 3 3 Combat Bots Only 3 | . 3 2 Max Kills in Single Turn 2 | . 2 1 Gunslinging 1 | . 1 . Exploded . | . . . Melee . | . . . Uniques/NPCs Destroyed . | . . . Combat | -11 -10 -10 -------- Run | Jun Mat Min Damage Taken 1176 | . 408 768 Core 265 | . 38 227 Absorbed by Shields . | . . . Core Remaining (%) 100 | 100 . . Volleys Fired 68 | . 47 21 Largest 2 | . 2 2 Hottest 80 | . 80 78 Shots Fired 135 | . 94 41 Gun 24 | . 24 . Cannon 111 | . 70 41 Launcher . | . . . Special . | . . . Kinetic 111 | . 70 41 Thermal . | . . . Explosive . | . . . Electromagnetic 24 | . 24 . Robot Hit Streak 10 | . 9 10 Robot Miss Streak 6 | . 4 6 Penetration Max . | . . . Secondary Targets 1 | . 1 . Max Gunslinging Chain 1 | . 1 . Shots Hit Robots 58 | . 38 20 Core Hits 30 | 1 23 6 Critical Kills . | . . . Critical Parts Destroyed . | . . . Critical Strikes 2 | . 1 1 Blast 2 | . 1 1 Melee Attacks . | . . . Impact . | . . . Slashing . | . . . Piercing . | . . . Sneak Attacks . | . . . Combat Hostiles . | . . . Follow-up Attacks . | . . . Damage Inflicted 1206 | 2 756 448 Guns 200 | . 200 . Cannons 977 | . 529 448 Explosions . | . . . Melee . | . . . Ramming 29 | 2 27 . Kinetic 977 | . 529 448 Thermal . | . . . Explosive . | . . . Electromagnetic 200 | . 200 . Impact . | . . . Slashing . | . . . Piercing . | . . . Highest Corruption 2 | . . 2 Average Corruption 2 | . . 2 Corruption Purged . | . . . Corruption Blocked . | . . . Overload Shots . | . . . Overflow Damage 3 | . . 3 Projectiles 3 | . . 3 Explosions . | . . . Melee . | . . . Knockbacks 8 | . 7 1 Impact 1 | . 1 . Kinetic 6 | . 5 1 Secondary 1 | . 1 . Self-Inflicted Damage . | . . . Shots . | . . . Rammed 7 | 1 6 . Targets Rammed 8 | 1 7 . Kicked . | . . . Crushed 1 | . 1 . Highest Temperature 225 | . 225 25 Average Temperature 48 | . 55 8 Received Heat Transfer 267 | . 165 102 Siege Activations . | . . . Robots Corrupted . | . . . Combat Hostiles . | . . . Parts Fried 1 | . 1 . Impact Corruptions . | . . . Robots Melted . | . . . Combat Hostiles . | . . . Parts Melted . | . . . Heat Transferred . | . . . Parts Sabotaged . | . . . Parts Stolen . | . . . Parts Stripped . | . . . Power Chain Reactions . | . . . Missiles Intercepted . | . . . Alert | -11 -10 -10 ------- Run | Jun Mat Min Peak Influence 267 | . 267 92 Initial 35 | . . 35 Average 106 | . 124 79 Maximum Alert Level 1 | . 1 . Low Security (%) 92 | 100 89 100 Level 1 7 | . 10 . Level 2 . | . . . Level 3 . | . . . Level 4 . | . . . Level 5 . | . . . High Security . | . . . Max Security . | . . . Squads Dispatched 2 | . 2 . Investigation 1 | . 1 . Extermination . | . . . Reinforcement 1 | . 1 . Assault . | . . . Garrison . | . . . Intercept . | . . . Searches Triggered . | . . . Construction Impeded . | . . . Haulers Reinforced . | . . . Active Scanning Responses . | . . . Cargo Convoy Interrupts . | . . . Stealth | -11 -10 -10 --------- Run | Jun Mat Min Distress Signals . | . . . Communications Jammed . | . . . Distress Signals . | . . . Times Spotted 25 | . 19 6 Peak Tracking Total 3 | . 3 2 Tactical Retreats . | . . . Traps | -11 -10 -10 ------- Run | Jun Mat Min Traps Triggered 3 | . 3 . Indirectly . | . . . Trap Hack Attempts . | . . . Triggered . | . . . Disarmed . | . . . Reprogrammed . | . . . Reused . | . . . Traps Extracted . | . . . Installed . | . . . Triggered . | . . . Machines | -11 -10 -10 ---------- Run | Jun Mat Min Machines Disabled . | . . . Max in Single Turn . | . . . Machines Repaired . | . . . Machines Sabotaged . | . . . Overloaded Fab Kills . | . . . Hacking | -11 -10 -10 --------- Run | Jun Mat Min Machines Accessed 3 | . 2 1 Terminals 3 | . 2 1 Fabricators . | . . . Repair Stations . | . . . Recycling Units . | . . . Scanalyzers . | . . . Garrison Access . | . . . Total Hacks 6 | . 4 2 Successful 2 | . 1 1 Failed 2 | . 2 . Catastrophic . | . . . Database Lockouts 2 | . 1 1 Manual 7 | . 5 2 Terminals 6 | . 4 2 Fabricators . | . . . Repair Stations . | . . . Recycling Units . | . . . Scanalyzers . | . . . Garrison Access . | . . . Terminal Hacks 2 | . 1 1 Robot Analysis 2 | . 1 1 Fabricator Hacks . | . . . Repair Station Hacks . | . . . Recycling Unit Hacks . | . . . Scanalyzer . | . . . Garrison Access Hacks . | . . . Unauthorized Hacks . | . . . Terminals . | . . . Fabricators . | . . . Repair Stations . | . . . Recycling Units . | . . . Scanalyzers . | . . . Garrison Access . | . . . Data Cores Recovered . | . . . Used . | . . . Hacking Detections 2 | . 1 1 Full Trace Events . | . . . Feedback Events . | . . . Feedback Blocked . | . . . Robot Schematics Acquired . | . . . Robots Built . | . . . Authchips . | . . . Time . | . . . Total Robot Build Rating . | . . . Part Schematics Acquired . | . . . Parts Built . | . . . Authchips . | . . . Time . | . . . Total Part Build Rating . | . . . Parts Repaired . | . . . Time . | . . . Parts Recycled . | . . . Recycled Matter . | . . . Retrieved Matter . | . . . Retrieved Components . | . . . Parts Scanalyzed . | . . . Part Schematics Acquired . | . . . Parts Damaged . | . . . Bothacking | -11 -10 -10 ------------ Run | Jun Mat Min Used RIF Installer . | . . . Robots Hacked . | . . . Non-combat . | . . . Combat . | . . . Robot Hacks Applied . | . . . Relay Couplers Released . | . . . Fabnet Peak Effective % . | . . . Robots Rewired . | . . . Allies Hacked . | . . . Hacks Repelled . | . . . Allies | -11 -10 -10 -------- Run | Jun Mat Min Total Allies . | . . . Largest Group . | . . . Highest-Rated Group . | . . . Highest-Rated Ally . | . . . Total Orders . | . . . Ally Attacks . | . . . Total Damage . | . . . Kills . | . . . Allies Corrupted . | . . . Allies Melted . | . . . Intel | -11 -10 -10 ------- Run | Jun Mat Min Robot Analysis Total 2 | . 1 1 Derelict Logs Recovered 1 | . . 1 Drone Launches . | . . . Drone Recoveries . | . . . Exploration | -11 -10 -10 ------------- Run | Jun Mat Min Turns Passed 1698 | 107 1192 399 Spaces Moved 878 | 62 621 195 Core 4 | 4 . . Treads 874 | 58 621 195 Legs . | . . . Wheels . | . . . Hover . | . . . Flight . | . . . Fastest Speed 50 | 50 160 160 Average Speed 159 | 152 160 160 Slowest Speed 160 | 160 160 160 Overloaded Moves . | . . . Propulsion Burnouts . | . . . Robots Hopped . | . . . Cave-ins Triggered . | . . . Exploration Rate (%) 48 | 6 97 43 Regions Visited 2 Branch Regions 1 Pre-discovered Areas 1 | . . 1 Known Exits Taken . | . . . Unknown Exits Taken 2 | 1 1 . Scrap Searched . | . . . Spaces Dug 1 | . 1 . Terrain Destroyed 9 | . 6 3 Melee . | . . . Projectile 9 | . 6 3 AOE . | . . . Terrain Rammed . | . . . Walls Destroyed . | . . . Machines Disabled . | . . . Actions | -11 -10 -10 --------- Run | Jun Mat Min Total 1038 | 71 726 241 Wait 45 | 1 21 23 Move 877 | 62 620 195 Hop . | . . . Pick Up 16 | 2 14 . Fast Attach 8 | 6 2 . Attach 4 | . 2 2 Detach 1 | . 1 . Swap 2 | . 2 . Drop 10 | . 10 . Fire 68 | . 47 21 Melee . | . . . Ram . | . . . Kick . | . . . Crush 7 | . 7 . Escape Stasis . | . . . Rewire . | . . . Trap . | . . . Miscellaneous . | . . . Route ------- -11/Junkyard -10/Materials (discovered 6 exits: [*Mat x3] / *Min x2 / [*Sub]) -10/Mines (discovered 1 exit: [*Mat]) History --------- Turn | Location | Event 3 | -11/Junkyard | Discovered new exit (range 15) 108 | -11/Junkyard | Entered Materials 166 | -10/Materials | Discovered new exit (range 8) 327 | -10/Materials | Build established: Mutant 392 | -10/Materials | Central database locked down 416 | -10/Materials | Discovered new exit (range 6) 808 | -10/Materials | Discovered new exit (range 15) 974 | -10/Materials | Discovered new exit (range 8) 1113 | -10/Materials | Discovered new exit (range 15) 1118 | -10/Materials | Discovered new exit (range 7) 1300 | -10/Materials | Entered Mines 1301 | -10/Mines | Learned location of Storage (-7) 1481 | -10/Mines | Discovered new exit (range 10) 1524 | -10/Mines | Central database locked down 1551 | -10/Mines | Assembled infested the area 1691 | -10/Mines | Core integrity fell below 50% 1695 | -10/Mines | Core integrity fell below 20% 1699 | -10/Mines | Destroyed by D-53 Grenadier with Mini Grenade Launcher Last Messages --------------- 01664_ Lgt. Treads destroyed. 01664_ System corrupted by crushing effect (+2). 01667_ K-01 Serf collects debris. 01673_ Destroyed Asb. Hover Unit. 01673_ as-63820 destroyed. 01677_ K-01 Serf collects debris. 01678_ The unstable cave ceiling collapses. 01678_ Acquired 5 matter. 01680_ K-01 Serf collects debris. 01681_ Acquired 3 matter. 01684_ K-01 Serf collects debris. 01686_ K-01 Serf destroyed. 01687_ R-06 Scavenger destroyed. 01687_ K-01 Serf collects debris. 01688_ Heat Sink destroyed. 01691_ Imp. Light Cannon destroyed. 01691_ K-01 Serf collects debris. 01692_ Lgt. Ion Engine destroyed. 01695_ Imp. Light Cannon destroyed. 01697_ The unstable cave ceiling collapses. Map ----- +----------------------------------------------------+ | ?????????????????????????????????????????????????? | | ?????????????????????????????????????????????????? | | ?????????????????????????????????????????????????? | | ?????????????????????????????????????????????????? | | ?????????????????????????????????????????????????? | | ?????????????????????????????????????????????????? | | ?????????????????????????????????????????????????? | | ?????????????????????????????????????????????????? | | ?????????????????????????????????????????????????? | | ?????????????????????????????????????????????????? | | ?????????????????????????????????????????????????? | | ?????????????????????????????????????????????????? | | ?????????????????????????????????????????????????? | | ?????????????????????????????????????????????????? | | ?????????????????????????????????????????????????? | | ?????????????? ??##???????##???#?????????????????? | | ????????????? %## ##???#?? ### ???#????#####????? | | ????????????? % #??# ?# ? ????## ##???? | | ?????????????? =%???? # ?#???# #???? | | ???????????????# dd !%##########% ?#??# #???? | | ????????????????# *% % % # ??## #????? | | ????????????????## % % % ???## #?????? | | ????????????????#; # k# ??## ###?????? | | ???????????# #### # ### ##???????? | | ??????????# #?## ##????????? | | ?????????? t @ ### #?????????? | | ??????????? ### ## < #?????????? | | ?????????????????# ## #?????????? | | ????????????????# ### ##?????????? | | ???????????????# # #?### ##??????????? | | ???????????????# ### ## ## #???# ##########?### | | ???????????????## ???##?# ## #???# #?#T# | | ????????????????##???????# ## ##### ######## #?# | | ?????????????????????????# ## #??????# #?# | | ?????????????????????????# ######## #??##### ### | | ?????????????????????????# ######## ### ## | | ?????????????????????????# ## ##### | | ?????????????????????##??##### ##### #??# | | ?????????????????????# #### #??## #??### | | ????????????????????# #### #????? | | ???????????????? ##### ## ##????? | | ????????????????????????????## ######?????? | | ??????????????????????## #### ##??????????? | | ????????????????????? ##??????????? | | ??????????????????????###### ##?????????? | | ???????????????????????????# ####??????? | | ???????????????????????????# ##?????? | | ??????????????????????????# ### #?????? | | ??????????????????????????## #??# #?????? | | ???????????????????????????##???## #?????? | +----------------------------------------------------+ Best States ------------- Heat Dissipation 35 Energy Generation 10 Energy Capacity 125 Matter Stores 300 Matter Capacity 300 Sight Range 16 Terrain Scan Density 10 Evasion (%) 40 Recoil Reduction 2 Item Schematics ----------------- None Robot Schematics ------------------ None Fabricated ------------ Nothing Alien Tech Used ----------------- None Achievements -------------- None Challenges ------------ None Game ------ Seed ImpulseSkeletonBlaster Manual? 0 Play Time 00:10:27 Cumulative 420.0 hours Start 2023.07.03 @ 19:01:27 End 2023.07.03 @ 19:11:12 Sessions 1 Manual Loads 0 Difficulty Rogue Special Mode None Game No. 501 Rogue 414 Adventurer 87 Explorer 0 Win Type - Total 22 Types 7/0/12/1/1/0/1/0/0 Lore% 85 Gallery% 90 Achievement% 73 Wizard Run 0 Options --------- ASCII 0 Keyboard 1 Movement Numpad Keybinds 0 Fullscreen 1 Font 18/SmallcapsGlow Map View 76x50 Tactical HUD 1 Map Filters NONE Filters NONE Steam 1 RUN: 92348243-6f9b-4e67-9a96-f539384cdce8